Cogmind - Beta 17.1 @@@ ROGUE MODE // 2026.09.07 @ 20:57:59 Player: Cereal Killer Result: Destroyed by G-47 Trooper with Particle Gun Performance ------------- Evolutions (0) 0 Regions Visited (1) 200 Robots Destroyed (8) 40 Value Destroyed (188) 188 Prototype IDs (3) 60 Alien Tech Used (0) 0 Bonus (5200) 5200 TOTAL SCORE: 5688 Bonus ------- Prayed to X0-1V1 5000 Major X0-1V1 Interference 200 Cogmind --------- Core Integrity 0/150 Matter 382/500 Energy 238/250 System Corruption 2% Temperature Warm (165) Movement Rolling (115) Ox1 Location -10/Materials Parts ------- > --- POWER (1) -------- Ion Engine > --- PROPULSION (2) --- Compact Wheel > --- UTILITY (2) ------ Medium Storage Unit X0-1V1's Piety Tracker > --- WEAPON (2) ------- Medium Laser Small Laser > --- INVENTORY (10) --- Small Storage Unit Utility Shielding Utility Shielding Cobbler Unit Grenade Launcher Peak State ------------ > --- POWER ------------ Ion Engine > --- PROPULSION ------- Compact Wheel Compact Wheel > --- UTILITY ---------- Small Storage Unit X0-1V1's Piety Tracker > --- WEAPON ----------- Medium Laser Small Laser > --- INVENTORY -------- Utility Shielding Cobbler Unit Grenade Launcher [Rating: 19] Favorites ----------- Power Ion Engine Engine Ion Engine Propulsion Compact Wheel Wheel Compact Wheel Utility X0-1V1's Piety Tracker Device X0-1V1's Piety Tracker Storage Medium Storage Unit Weapon Medium Laser Energy Gun Medium Laser Build | -11 -10 ------- Run | Yrd Mat Slots Evolved . | . . Power . | . . Propulsion . | . . Utility . | . . Weapon . | . . Parts Attached 14 | 5 9 Power 3 | 1 2 Engine 3 | 1 2 Core . | . . Reactor . | . . Propulsion 3 | 2 1 Treads . | . . Leg . | . . Wheel 3 | 2 1 Hover . | . . Flight . | . . Utility 5 | . 5 Device 3 | . 3 Storage 2 | . 2 Processor . | . . Hackware . | . . Protection . | . . Artifact . | . . Weapon 3 | 2 1 Energy Gun 3 | 2 1 Energy Cannon . | . . Ballistic Gun . | . . Ballistic Cannon . | . . Launcher . | . . Special Weapon . | . . Impact Weapon . | . . Slashing Weapon . | . . Piercing Weapon . | . . Special Melee Weapon . | . . Unidentified Prototypes 1 | . 1 Parts Lost 7 | . 7 Power 2 | . 2 Propulsion 2 | . 2 Utility 2 | . 2 Weapon 1 | . 1 Highest Loss Streak 5 | . 5 To Critical Strikes . | . . Average Backups 3 | 1 3 Power . | . . Propulsion . | . . Utility 1 | . 1 Weapon . | . . Tool/Special . | . . Unused Backups 4 | . 4 Power . | . . Propulsion 1 | . 1 Utility 2 | . 2 Weapon 1 | . 1 Tool/Special . | . . Average Slot Usage (%) 76 | . 76 Engine 13 | . 13 Wheel 27 | . 27 Device 5 | . 5 Storage 2 | . 2 Energy Gun 27 | . 27 Peak Build Rating 19 | 5 19 Average Rating 9 | 3 9 On Entrance 2 | . 5 Avg Prop Armor Cover (%) . | . . Naked Turns . | . . Heaviest Build 20 | 9 20 Greatest Support 32 | 26 32 Greatest Overweight (x) . | . . Average Overweight (x) . | . . Largest Inventory Capacity 10 | 5 10 Average Capacity 5 | 5 5 Most Carried 7 | 3 7 Average Carried 3 | 1 3 Final Capacity 10 | 5 10 Final Carried 6 | 3 6 Class Distribution -------------------- 100% | Mutant Dominant Class ---------------- Mutant | -10/Materials Resources | -11 -10 ----------- Run | Yrd Mat Matter Collected 397 | 240 157 Remotely . | . . Salvage Created 288 | . 288 Parts 13 | . 13 Haulers Intercepted . | . . Recyclers Shooed 1 | . 1 Parts Field Recycled . | . . Retrieved Matter . | . . Parts Self-Destructed . | . . Prevented . | . . Parts Restored . | . . Kills | -11 -10 ------- Run | Yrd Mat Combat Hostiles Destroyed 4 | . 4 Guns 4 | . 4 Classes Destroyed 5 | . 5 Worker 1 | . 1 Recycler 1 | . 1 Operator 1 | . 1 Watcher 1 | . 1 Grunt 4 | . 4 Best Kill Streak 2 | . 2 Combat Bots Only 2 | . 2 Max Kills in Single Turn 1 | . 1 Gunslinging . | . . Exploded . | . . Melee . | . . Uniques/NPCs Destroyed . | . . Combat | -11 -10 -------- Run | Yrd Mat Hostile Shots Fired 54 | . 54 Missed 9 | . 9 Hits 45 | . 45 Projectile 45 | . 45 Critical Strikes 1 | . 1 Damage Taken 599 | . 599 Core 163 | . 163 Absorbed by Shields . | . . Core Remaining (%) 100 | 100 . Volleys Fired 46 | . 46 Largest 2 | . 2 Hottest 100 | . 100 Shots Fired 82 | . 82 Gun 82 | . 82 Cannon . | . . Launcher . | . . Special . | . . Kinetic . | . . Thermal 82 | . 82 Explosive . | . . Electromagnetic . | . . Robot Hit Streak 8 | . 8 Robot Miss Streak 3 | . 3 Penetration Max . | . . Secondary Targets . | . . Shots Hit Robots 47 | . 47 Core Hits 18 | . 18 Critical Kills . | . . Critical Parts Destroyed . | . . Critical Strikes 4 | . 4 Burn 4 | . 4 Melee Attacks . | . . Impact . | . . Slashing . | . . Piercing . | . . Sneak Attacks . | . . Combat Hostiles . | . . Follow-up Attacks . | . . Damage Inflicted 615 | . 615 Guns 615 | . 615 Cannons . | . . Explosions . | . . Melee . | . . Ramming . | . . Kinetic . | . . Thermal 615 | . 615 Explosive . | . . Electromagnetic . | . . Impact . | . . Slashing . | . . Piercing . | . . Highest Corruption 2 | . 2 Average Corruption 2 | . 2 Corruption Purged . | . . Corruption Blocked . | . . Effects 4 | . 4 Message Errors 2 | . 2 Energy Discharges 1 | . 1 Weapon Failures 1 | . 1 Overload Shots . | . . Overflow Damage . | . . Projectiles . | . . Explosions . | . . Melee . | . . Knockbacks . | . . Impact . | . . Kinetic . | . . Secondary . | . . Self-Inflicted Damage . | . . Shots . | . . Rammed . | . . Targets Rammed . | . . Kicked . | . . Crushed . | . . Highest Temperature 338 | . 338 Average Temperature 98 | . 98 Received Heat Transfer 354 | . 354 Effects 1 | . 1 Interference 1 | . 1 Siege Activations . | . . Martial Activations . | . . Shielding Activations . | . . Robots Disrupted . | . . Combat Hostiles . | . . Robots Corrupted . | . . Combat Hostiles . | . . Parts Fried . | . . Impact Corruptions . | . . Robots Melted . | . . Combat Hostiles . | . . Parts Melted 5 | . 5 Heat Transferred 2014 | . 2014 Parts Sabotaged . | . . Parts Stolen . | . . Parts Stripped . | . . Power Chain Reactions . | . . Alert | -11 -10 ------- Run | Yrd Mat Maximum Alert Level . | . . Low Security (%) 100 | 100 100 Level 1 . | . . Level 2 . | . . Level 3 . | . . Level 4 . | . . Level 5 . | . . High Security . | . . Max Security . | . . Peak Influence 59 | . 59 Initial . | . . Average 8 | . 9 Influence Increases 142 | . 142 Destroy 0b10 Robot/C 80 | . 80 Destroy 0b10 Robot/NC 20 | . 20 Destroy Leader 22 | . 22 Successful Hack 20 | . 20 Influence Decreases 142 | . 142 Time Decay 122 | . 122 Lost Part 20 | . 20 Squads Dispatched 1 | . 1 Investigation . | . . Extermination . | . . Reinforcement 1 | . 1 Assault . | . . Garrison . | . . Intercept . | . . Searches Triggered . | . . Construction Impeded . | . . Haulers Reinforced . | . . Active Scanning Responses . | . . Cargo Convoy Interrupts . | . . Stealth | -11 -10 --------- Run | Yrd Mat Distress Signals 2 | . 2 Communications Jammed . | . . Distress Signals . | . . Times Spotted 12 | . 12 Peak Tracking Total 3 | . 3 Tactical Retreats . | . . Traps | -11 -10 ------- Run | Yrd Mat Traps Triggered 1 | . 1 Indirectly . | . . Trap Hack Attempts . | . . Triggered . | . . Disarmed . | . . Reprogrammed . | . . Reused . | . . Traps Extracted . | . . Installed . | . . Triggered . | . . Machines | -11 -10 ---------- Run | Yrd Mat Machines Disabled . | . . Max in Single Turn . | . . Machines Repaired . | . . Machines Dismantled . | . . Machines Sabotaged . | . . Overloaded Fab Kills . | . . Hacking | -11 -10 --------- Run | Yrd Mat Machines Accessed 2 | . 2 Terminals 2 | . 2 Fabricators . | . . Repair Stations . | . . Recycling Units . | . . Scanalyzers . | . . Garrison Access . | . . Total Hacks 7 | . 7 Successful 4 | . 4 Failed 3 | . 3 Catastrophic . | . . Database Lockouts . | . . Manual 8 | . 8 Terminals 7 | . 7 Fabricators . | . . Repair Stations . | . . Recycling Units . | . . Scanalyzers . | . . Garrison Access . | . . Terminal Hacks 3 | . 3 Robot Analysis 2 | . 2 Prototype ID Bank 1 | . 1 Fabricator Hacks . | . . Repair Station Hacks . | . . Recycling Unit Hacks . | . . Scanalyzer . | . . Garrison Access Hacks . | . . Unauthorized Hacks 1 | . 1 Terminals 1 | . 1 Botnet 1 | . 1 Fabricators . | . . Repair Stations . | . . Recycling Units . | . . Scanalyzers . | . . Garrison Access . | . . Data Cores Recovered . | . . Used . | . . Hacking Detections 2 | . 2 Full Trace Events . | . . Feedback Events . | . . Feedback Blocked . | . . Robot Schematics Acquired . | . . Robots Built . | . . Authchips . | . . Time . | . . Total Robot Build Rating . | . . Part Schematics Acquired . | . . Parts Built . | . . Authchips . | . . Time . | . . Total Part Build Rating . | . . Part Studies Acquired . | . . Parts Repaired . | . . Time . | . . Parts Recycled . | . . Recycled Matter . | . . Retrieved Matter . | . . Retrieved Components . | . . Parts Scanalyzed . | . . Part Schematics Acquired . | . . Parts Damaged . | . . Bothacking | -11 -10 ------------ Run | Yrd Mat Used RIF Installer . | . . Robots Hacked . | . . Non-combat . | . . Combat . | . . Robot Hacks Applied . | . . Relay Couplers Released . | . . Fabnet Peak Effective % . | . . Robots Rewired . | . . Allies Hacked . | . . Hacks Repelled . | . . Allies | -11 -10 -------- Run | Yrd Mat Total Allies . | . . Largest Group . | . . Highest-Rated Group . | . . Highest-Rated Ally . | . . Total Orders . | . . Ally Attacks . | . . Total Damage . | . . Kills . | . . Allies Corrupted . | . . Allies Melted . | . . X0-1V1 Amusement Gains 38 | . 38 Average Entertainment 30 | . 30 Good Acts 4 | . 4 Bad Acts 2 | . 2 Intel | -11 -10 ------- Run | Yrd Mat Active Infowar (turns) . | . . Robot Analysis Total 2 | . 2 Derelict Logs Recovered . | . . Drone Launches . | . . Drone Recoveries . | . . Exploration | -11 -10 ------------- Run | Yrd Mat Turns Passed 649 | 62 587 Spaces Moved 507 | 55 452 Core 2 | 2 . Treads . | . . Legs . | . . Wheels 505 | 53 452 Hover . | . . Flight . | . . Fastest Speed 50 | 50 90 Average Speed 92 | 89 92 Slowest Speed 100 | 100 100 Overloaded Moves . | . . Propulsion Burnouts . | . . Robots Hopped . | . . Potential Cave-ins . | . . Cave-ins Triggered . | . . Exploration Rate (%) 32 | 3 62 Regions Visited 1 Branch Regions . Pre-discovered Areas . | . . Known Exits Taken . | . . Unknown Exits Taken 1 | 1 . Scrap Searched . | . . Spaces Dug . | . . Terrain Destroyed . | . . Melee . | . . Projectile . | . . AOE . | . . Terrain Rammed . | . . Walls Destroyed . | . . Machines Disabled . | . . Actions | -11 -10 --------- Run | Yrd Mat Total 604 | 67 537 Wait 18 | . 18 Move 506 | 54 452 Hop . | . . Pick Up 17 | 8 9 Fast Attach 2 | . 2 Attach 12 | 5 7 Detach 1 | . 1 Swap 1 | . 1 Drop 1 | . 1 Fire 46 | . 46 Melee . | . . Ram . | . . Kick . | . . Crush . | . . Escape Stasis . | . . Rewire . | . . Trap . | . . Miscellaneous . | . . Route ------- -11/Scrapyard -10/Materials (discovered 4 exits: [*Mat x2] / [*Min] / [*Sub]) History --------- Turn | Location | Event 20 | -11/Scrapyard | Discovered new exit (range 15) 63 | -11/Scrapyard | Entered Materials 151 | -10/Materials | Discovered new exit (range 6) 311 | -10/Materials | Build established: Mutant 364 | -10/Materials | Discovered new exit (range 6) 369 | -10/Materials | Prayed at D.C.S.S. Altar Unit 386 | -10/Materials | Discovered new exit (range 16) 420 | -10/Materials | Matter capacity permanently improved by X0-1V1 (+200; -100 max core) 478 | -10/Materials | Core integrity fell below 50% 507 | -10/Materials | Lost 5 parts (1p1n2u1w) 561 | -10/Materials | Discovered new exit (range 4) 649 | -10/Materials | Core integrity fell below 20% 650 | -10/Materials | Destroyed by G-47 Trooper with Particle Gun Last Messages --------------- X0-1V1's Piety Tracker suddenly appears amidst shimmering waves of color. 00532_ Dropped Aluminum Leg. 00544_ Acquired X0-1V1's Piety Tracker. 00548_ Acquired Utility Shielding. 00561_ EXIT=FOUND 00562_ K-01 Serf cleans the Material Processor. 00581_ Acquired Med. Storage Unit. 00598_ Ion Engine destroyed. 00606_ G-34 Mercenary heat short circuits Aluminum Leg. 00609_ Heat Sink melted. 00609_ Sml. Laser melted. 00609_ G-34 Mercenary destroyed. 00612_ Acquired 45 matter. 00622_ Acquired Ion Engine. 00630_ X0-1V1 points here and there (7 item locations revealed). 00646_ Com. Wheel destroyed. 00650_ X0-1V1 snickers! Map ----- +----------------------------------------------------+ | ??????????????????????????????????????# # | | ??????????????????????????????????????# # | | ??????????????????????????????????????# # | | ???????????????????????????# ######## # | | ???????????????????????????# | | ???????????????????????????# | | ???????????????????????????# "" | | ???????????????????????????# Y" ###### | | ???????????????????????????# "" #?# | | ???????????????????????????# #?# | | ???????????????????????????# #?# | | ???????????????????????????# ? #?## | | ???????????????????????????# #?#X## | | ???????????????????????????# ^""" #?##?? | | ???????????????????????????# """"" #????? | | ???????????????????????????# """"" #????? | | ???????????????????????????# """"" #????? | | ???????????????????????????# """ #????? | | ???????????????????????????# #????? | | ?????????????############### #????? | | ?????????????# + ### #????? | | ?????????????# ##########/##?# #????? | | ?????????????#""" #??????? |# #????? | | ?????????????#""" #?????# !== # #????? | | ?????????????#""" #?????# != # #????? | | ?????????????# @#?????# == !# #????? | | ????????!=???# #?????# # ###### | | ????????!=???####g##?????# """ # | | ???????????????? ???????# """ # | | ??????????????? ???????# """ # | | ??????????!??? ###???????# # ###+## | | ?????????????? ??????????####???## # | | ????????????? ???????????????????# < # | | ???????????? ????????????????????# # !! | | ??????????? ????????????????????##### !] | | ???????????#???????????????!?????????# | | ?????????????????????????????????????# | | ?????????????????????????????????????###### | | ??????????????????????????????????????????? | | | | | | | | | | | | | | | | | | | | | | | +----------------------------------------------------+ Best States ------------- Heat Dissipation 25 Energy Generation 10 Energy Capacity 250 Matter Stores 387 Matter Capacity 500 Sight Range 16 Terrain Scan Density 10 Evasion (%) 42 Item Schematics ----------------- None Robot Schematics ------------------ None Fabricated ------------ Nothing Repaired ---------- Nothing Studied --------- None Alien Tech Used ----------------- None Achievements -------------- None Challenges ------------ None Game ------ Seed ChromaticMetamassBarrier Manual? 0 Play Time 00:10:38 Cumulative 361.3 hours Start 2026.09.07 @ 20:44:26 End 2026.09.07 @ 20:57:59 Sessions 1 Manual Loads 0 Difficulty Rogue Special Mode None Game No. 272 Rogue 263 Adventurer 9 Explorer 0 Win Type - Total 5 Types 4/0/0/1/0/0/0/0/0/0 Lore% 88 Gallery% 73 Achievement% 56 Wizard Run 0 Options --------- Layout 1 ASCII 0 Keyboard 0 Movement Numpad Keybinds 0 Fullscreen 1 Font 24/Smallcaps Map View 50x35 Zoom Use 0% Tactical HUD 1 Map Filters NONE Filters NONE Steam 1 RUN: 6167fd1e-709c-40a7-a664-7027217f1319